bitfinex/quotes_BTCUSD_20250331
["timestamp","ask_amount","ask_price","bid_price","bid_amount"]
[1743405138086,0.00014066,82269.0,82268.0,0.403462]
[1743405138414,0.00014066,82269.0,82268.0,0.402462]
[1743405138991,0.00114066,82269.0,82268.0,0.402462]
[1743405139826,0.00014066,82269.0,82268.0,0.402462]
[1743405140373,0.01917798,82269.0,82268.0,0.402462]
[1743405140970,0.27443698,82269.0,82268.0,0.1472]
[1743405141171,0.27543698,82269.0,82268.0,0.1472]
[1743405141381,0.255265,82268.0,82263.0,0.255277]
[1743405141588,0.27543798,82269.0,82268.0,0.14792]
[1743405142217,0.02017798,82269.0,82268.0,0.14792]
[1743405142627,0.02017798,82269.0,82268.0,0.14776]
[1743405143160,0.02017798,82269.0,82268.0,0.403022]
[1743405143562,0.02017798,82269.0,82268.0,0.52330683]
[1743405145090,0.01917798,82269.0,82268.0,0.52330683]
[1743405145307,0.01917798,82269.0,82268.0,0.52430683]
[1743405145712,0.01917798,82269.0,82268.0,0.52630683]
[1743405147227,0.01917798,82269.0,82268.0,0.75472483]
[1743405147437,0.24324466,82269.0,82268.0,0.90208483]
[1743405147637,0.00014066,82269.0,82268.0,1.14519183]
[1743405148347,0.00014066,82269.0,82268.0,0.90208483]
[1743405148699,0.00014066,82269.0,82268.0,1.14519183]
[1743405148901,0.00014066,82269.0,82268.0,0.90208483]
[1743405149353,0.00014066,82269.0,82268.0,1.14519183]
[1743405149596,0.25539966,82269.0,82268.0,0.7818]
[1743405149796,0.00014066,82269.0,82268.0,0.63444]
[1743405149928,0.00014066,82269.0,82268.0,0.877547]
[1743405150128,0.00014066,82269.0,82268.0,1.024907]
[1743405150332,0.01917689,82269.0,82268.0,1.024907]
[1743405150529,0.01917689,82269.0,82268.0,0.877547]
[1743405150755,0.01917689,82269.0,82268.0,1.024827]
[1743405150962,0.01917689,82269.0,82268.0,0.877547]
[1743405151381,0.01917689,82269.0,82268.0,1.024747]
[1743405151586,0.01917689,82269.0,82268.0,0.78164]
[1743405152106,0.01917689,82269.0,82268.0,0.63444]
[1743405152265,0.01917689,82269.0,82268.0,1.024667]
[1743405152677,0.01917689,82269.0,82268.0,1.024587]
[1743405154577,0.26228089,82269.0,82268.0,0.63444]
[1743405154706,0.26228089,82269.0,82268.0,0.78148]
[1743405154917,0.01917689,82269.0,82268.0,0.63444]
[1743405155135,0.01917689,82269.0,82268.0,1.024707]
[1743405156217,0.01917689,82269.0,82268.0,0.7816]
[1743405156448,0.26228089,82269.0,82268.0,0.7816]
[1743405156855,0.26228089,82269.0,82268.0,0.63444]
[1743405157105,0.27443589,82269.0,82268.0,0.63444]
[1743405157278,0.00014066,82269.0,82268.0,0.78152]
[1743405158051,0.24324466,82269.0,82268.0,0.78152]
[1743405158454,0.00014066,82269.0,82268.0,1.024627]
[1743405158854,0.00014066,82269.0,82268.0,0.78152]
[1743405160335,0.01917697,82269.0,82268.0,0.78152]
[1743405160992,0.01917697,82269.0,82268.0,1.024627]
[1743405161395,0.01917697,82269.0,82268.0,0.78152]
[1743405161815,0.01917697,82269.0,82268.0,1.036782]
[1743405162189,0.01917697,82269.0,82268.0,1.024627]
[1743405162844,0.01917697,82269.0,82268.0,0.78152]
[1743405163165,0.01917697,82269.0,82268.0,1.024627]
[1743405163354,0.01917697,82269.0,82268.0,0.78152]
[1743405164177,0.01917697,82269.0,82268.0,1.024627]
[1743405164378,0.01917697,82269.0,82268.0,1.024067]
[1743405165381,0.01917697,82269.0,82268.0,0.78096]
[1743405165607,0.01917697,82269.0,82268.0,1.024067]
[1743405165763,0.01917697,82269.0,82268.0,0.78096]
[1743405167024,0.26228097,82269.0,82268.0,0.78096]
[1743405168019,0.01917697,82269.0,82268.0,0.78096]
[1743405168362,0.26228097,82269.0,82268.0,0.78096]
[1743405169585,0.26228097,82269.0,82268.0,0.63444]
[1743405169786,0.26228097,82269.0,82268.0,0.78036]
[1743405171300,0.24324466,82269.0,82268.0,0.78036]
[1743405171538,0.55539966,82269.0,82268.0,0.63444]
[1743405171748,0.55539966,82269.0,82268.0,0.7802]
[1743405173028,0.60229966,82269.0,82268.0,0.7802]
[1743405173409,0.60229966,82269.0,82268.0,0.63444]
[1743405173778,0.68099966,82269.0,82268.0,0.63444]
[1743405173976,0.68099966,82269.0,82268.0,0.003]
[1743405174379,0.69017489,82269.0,82268.0,0.003]
[1743405174680,0.555297,82257.0,82256.0,0.14564]
[1743405174895,0.255325,82248.0,82247.0,0.6314]
[1743405175093,0.255325,82248.0,82247.0,0.77704]
[1743405175300,0.255325,82248.0,82247.0,0.6314]
[1743405175509,0.555325,82248.0,82247.0,0.777]
[1743405175754,0.57436684,82248.0,82247.0,0.777]
[1743405175946,0.57436684,82248.0,82247.0,0.6314]
[1743405176705,0.634025,82248.0,82247.0,0.6344]
[1743405177109,0.634025,82248.0,82247.0,0.6314]
[1743405177319,0.634025,82248.0,82247.0,0.6324]
[1743405177951,0.49898483,82248.0,82220.0,0.0776]
[1743405178359,0.0469,82250.0,82217.0,0.63144]
[1743405178360,0.555405,82222.0,82217.0,0.63144]
[1743405178497,0.555405,82222.0,82221.0,0.1508]
[1743405179100,0.56784198,82222.0,82221.0,0.1508]
[1743405179534,0.57920724,82222.0,82221.0,0.1508]
[1743405179753,0.57920724,82222.0,82221.0,0.15114906]
[1743405181166,0.59825549,82222.0,82221.0,0.15214906]
[1743405181539,0.59825549,82222.0,82221.0,0.00546906]
[1743405181741,0.68273093,82222.0,82221.0,0.00546906]
[1743405181947,0.68273093,82222.0,82221.0,0.00746906]
[1743405182146,0.59825549,82222.0,82221.0,0.00746906]
[1743405183554,0.59825549,82222.0,82221.0,0.00646906]
[1743405184298,0.62092929,82222.0,82221.0,0.00646906]
[1743405184832,0.62092929,82222.0,82221.0,0.00446906]
[1743405185255,0.36552429,82222.0,82221.0,0.00546906]
[1743405185511,0.62092929,82222.0,82221.0,0.00546906]
[1743405185739,0.62092929,82222.0,82221.0,0.00446906]
[1743405186298,0.59825549,82222.0,82221.0,0.00446906]
[1743405187289,0.57920724,82222.0,82221.0,0.00446906]
[1743405187714,0.56784198,82222.0,82221.0,0.00446906]
[1743405189006,0.3,82222.0,82221.0,0.00446906]
[1743405189190,0.3,82222.0,82221.0,0.24771506]
[1743405189396,0.3,82222.0,82221.0,0.25987706]
[1743405190398,0.31904797,82222.0,82221.0,0.25987706]
[1743405191218,0.31904797,82222.0,82221.0,0.00446906]
[1743405191601,0.56229097,82222.0,82221.0,0.00446906]
[1743405191780,0.57445297,82222.0,82221.0,0.00446906]
[1743405192173,0.57445297,82222.0,82221.0,0.00546906]
[1743405192372,0.31904797,82222.0,82221.0,0.00546906]
[1743405192607,0.31904797,82222.0,82221.0,0.26087706]
[1743405193325,0.01904797,82222.0,82221.0,0.33867706]
[1743405195462,0.01904797,82222.0,82221.0,0.45896189]
[1743405195663,0.01904797,82222.0,82221.0,0.52080274]
[1743405196487,0.01904797,82222.0,82221.0,0.51980274]
[1743405196672,0.01904797,82222.0,82221.0,0.52380274]
[1743405197373,0.243203,82236.0,82233.0,0.243211]
[1743405197619,0.243203,82236.0,82234.0,0.14552]
[1743405197818,0.543199,82237.0,82234.0,0.388727]
[1743405198025,0.3,82237.0,82235.0,0.243204]
[1743405198442,0.243202,82236.0,82232.0,0.255371]
[1743405198642,0.543194,82239.0,82236.0,0.14544]
[1743405199065,0.543194,82239.0,82236.0,0.388642]
[1743405199267,0.3,82239.0,82237.0,0.255357]
[1743405199467,0.01219237,82241.0,82239.0,0.243193]
[1743405199613,0.3,82242.0,82241.0,0.255346]
[1743405199814,0.3,82242.0,82241.0,0.254346]
[1743405200229,0.57439011,82242.0,82241.0,0.14536]
[1743405200430,0.57439011,82242.0,82241.0,0.14436]
[1743405200673,0.56223111,82242.0,82241.0,0.14436]
[1743405201113,0.02104411,82242.0,82241.0,0.399706]
[1743405201455,0.01904411,82242.0,82241.0,0.51999083]
[1743405201660,0.02004411,82242.0,82241.0,0.51999083]
[1743405202287,0.01904411,82242.0,82241.0,0.51999083]
[1743405202491,0.01904411,82242.0,82241.0,0.52099083]
[1743405202698,0.01904411,82242.0,82241.0,0.53553168]
[1743405202899,0.01904411,82242.0,82241.0,0.61553168]
[1743405203078,0.01904411,82242.0,82241.0,0.61453168]
[1743405203281,0.01904411,82242.0,82241.0,0.61853168]
[1743405203456,0.01904411,82242.0,82241.0,0.61653168]
[1743405203834,0.01904411,82242.0,82241.0,0.61953168]
[1743405205187,0.01904411,82242.0,82241.0,0.61753168]
[1743405205386,0.01904411,82242.0,82241.0,0.62153168]
[1743405206562,0.01904411,82242.0,82241.0,0.61853168]
[1743405206905,0.01904411,82242.0,82241.0,0.62253168]
[1743405207357,0.555263,82268.0,82265.0,0.243116]
[1743405207681,0.543108,82268.0,82266.0,0.14512]
[1743405207834,0.54311,82267.0,82266.0,0.14512]
[1743405208366,0.55561648,82267.0,82266.0,0.14512]
[1743405208594,0.55575714,82267.0,82266.0,0.14512]
[1743405209401,0.55875714,82267.0,82266.0,0.14512]
[1743405209677,0.57091214,82267.0,82266.0,0.14512]
[1743405210075,0.55875714,82267.0,82266.0,0.14512]
[1743405210518,0.58695114,82267.0,82266.0,0.14512]
[1743405210671,0.58995114,82267.0,82266.0,0.14512]
[1743405211073,0.58695114,82267.0,82266.0,0.14512]
[1743405211882,0.58795114,82267.0,82266.0,0.14512]
[1743405212264,0.58895114,82267.0,82266.0,0.14512]
[1743405212857,0.3,82262.0,82261.0,0.6316]
[1743405213058,0.3,82262.0,82261.0,0.7762]
[1743405213258,0.543125,82262.0,82261.0,0.6316]
[1743405213618,0.543125,82262.0,82261.0,0.77616]
[1743405214178,0.555281,82262.0,82261.0,0.77616]
[1743405214916,0.555281,82262.0,82261.0,0.6316]
[1743405215111,0.634881,82262.0,82261.0,0.6316]
[1743405215597,0.555284,82261.0,82260.0,0.14516]
[1743405215797,0.67556883,82261.0,82260.0,0.14516]
[1743405216378,0.555284,82261.0,82260.0,0.14516]
[1743405216942,0.555284,82261.0,82260.0,0.14616]
[1743405219516,0.555284,82261.0,82260.0,0.1458]
[1743405220272,0.57432443,82261.0,82260.0,0.1458]
[1743405222154,0.70372443,82261.0,82260.0,0.001]
[1743405223260,0.255303,82255.0,82254.0,0.14456]
[1743405227109,0.255312,82252.0,82251.0,0.63152]
[1743405229029,0.555312,82252.0,82251.0,0.63152]
[1743405229235,0.67559683,82252.0,82251.0,0.63252]
[1743405229403,0.604112,82252.0,82251.0,0.63252]
[1743405229607,0.604112,82252.0,82251.0,0.001]
[1743405229608,0.684812,82252.0,82251.0,0.001]
[1743405230485,0.3,82238.0,82237.0,0.14456]
[1743405230636,0.555355,82238.0,82237.0,0.14456]
[1743405230834,0.3,82238.0,82237.0,0.14456]
[1743405231215,0.243167,82248.0,82237.0,0.21956]
[1743405231415,0.312159,82242.0,82237.0,0.21956]
[1743405231813,0.3,82243.0,82237.0,0.231719]
[1743405232012,0.243184,82242.0,82237.0,0.21956]
[1743405232279,0.243186,82242.0,82237.0,0.21956]
[1743405232538,0.243194,82239.0,82237.0,0.21956]
[1743405232726,0.243194,82239.0,82237.0,0.14456]
[1743405232931,0.001,82238.0,82237.0,0.14456]
[1743405233069,0.244196,82238.0,82237.0,0.14456]
[1743405233273,0.243194,82239.0,82237.0,0.14556]
[1743405233474,0.243194,82239.0,82237.0,0.14656]
[1743405233658,0.243194,82239.0,82237.0,0.14556]
[1743405233870,0.3,82240.0,82237.0,0.14656]
[1743405235133,0.255347,82241.0,82237.0,0.14456]
[1743405235332,0.243191,82240.0,82237.0,0.14456]
[1743405235563,0.243191,82240.0,82237.0,0.14656]
[1743405235982,0.243191,82240.0,82237.0,0.001]
[1743405236284,0.243193,82239.0,82238.0,0.14416]
[1743405236665,0.243196,82238.0,82237.0,0.001]
[1743405236848,0.243196,82238.0,82231.0,0.0454]
[1743405236849,0.012159,82237.0,82232.0,0.243211]
[1743405237050,0.243203,82236.0,82233.0,0.14408]
[1743405237250,0.01208465,82236.0,82234.0,0.14404]
[1743405237446,0.243196,82238.0,82234.0,0.14404]
[1743405237660,0.243196,82238.0,82234.0,0.387248]
[1743405238240,0.243196,82238.0,82234.0,0.14404]
[1743405239145,0.255358,82239.0,82234.0,0.14404]
[1743405239146,0.2432,82237.0,82234.0,0.14404]
[1743405239790,0.2432,82237.0,82234.0,0.14604]
[1743405239990,0.2432,82237.0,82234.0,0.14404]
[1743405240369,0.26224501,82237.0,82234.0,0.14604]
[1743405240593,0.243204,82236.0,82235.0,0.14372]
[1743405241355,0.25513968,82236.0,82235.0,0.14372]
[1743405242114,0.01193568,82236.0,82235.0,0.14372]
[1743405242322,0.26224501,82237.0,82235.0,0.14572]
[1743405243065,0.243202,82236.0,82235.0,0.14572]
[1743405243246,0.243202,82236.0,82235.0,0.14372]
[1743405243548,0.243202,82236.0,82235.0,0.14572]
[1743405243759,0.243202,82236.0,82235.0,0.14372]
[1743405244157,0.243202,82236.0,82235.0,0.14572]
[1743405244369,0.243202,82236.0,82235.0,0.14372]
[1743405244807,0.243202,82236.0,82235.0,0.14572]
[1743405245017,0.243202,82236.0,82235.0,0.14772]
[1743405245202,0.25537413,82236.0,82235.0,0.14572]
[1743405245420,0.01904501,82237.0,82236.0,0.255362]
[1743405246050,0.01904501,82237.0,82236.0,0.379462]
[1743405246265,0.01904501,82237.0,82236.0,1.011062]
[1743405246698,0.243143,82256.0,82248.0,0.012158]
[1743405246915,0.243134,82259.0,82250.0,0.255319]
[1743405247126,0.012155,82268.0,82263.0,0.243121]
[1743405247347,0.3,82267.0,82264.0,0.14384]
[1743405247574,0.00014066,82265.0,82264.0,0.386959]
[1743405247773,0.55541166,82265.0,82264.0,0.14384]
[1743405247912,0.25541166,82265.0,82264.0,0.14384]
[1743405248113,0.55541166,82265.0,82264.0,0.13984]
[1743405248325,0.30014066,82265.0,82264.0,0.13984]
[1743405248540,0.30014066,82265.0,82264.0,0.395114]
[1743405248949,0.00014066,82265.0,82264.0,0.395114]
[1743405249535,0.00014066,82265.0,82264.0,0.396114]
[1743405249651,0.00014066,82265.0,82264.0,0.14084]
[1743405249868,0.01917916,82265.0,82264.0,0.396114]
[1743405250066,0.31917916,82265.0,82264.0,0.14084]
[1743405251143,0.01917916,82265.0,82264.0,0.14084]
[1743405251810,0.01917916,82265.0,82264.0,0.383959]
[1743405252568,0.01917916,82265.0,82264.0,0.14084]
[1743405253223,0.01917916,82265.0,82264.0,0.383959]
[1743405253423,0.01917916,82265.0,82264.0,0.14084]
[1743405256299,0.31917916,82265.0,82264.0,0.383959]
[1743405256509,0.31917916,82265.0,82264.0,0.14084]
[1743405257002,0.56229516,82265.0,82264.0,0.14084]
[1743405257380,0.54325666,82265.0,82264.0,0.14084]
[1743405258432,0.30014066,82265.0,82264.0,0.14084]
[1743405258574,0.54325666,82265.0,82264.0,0.14084]
[1743405258779,0.30014066,82265.0,82264.0,0.14084]
[1743405259665,0.30014066,82265.0,82264.0,0.14404]
[1743405259666,0.54325666,82265.0,82264.0,0.14404]
[1743405260386,0.56229571,82265.0,82264.0,0.14404]
[1743405261199,0.31917971,82265.0,82264.0,0.14404]
[1743405261399,0.56229571,82265.0,82264.0,0.14404]
[1743405262584,0.31917971,82265.0,82264.0,0.14404]
[1743405262786,0.56229571,82265.0,82264.0,0.14404]
[1743405262986,0.31917971,82265.0,82264.0,0.387159]
[1743405263182,0.31917971,82265.0,82264.0,0.14404]
[1743405263958,0.31917971,82265.0,82264.0,0.14364]
[1743405264697,0.31917971,82265.0,82264.0,0.001]
[1743405264903,0.56229571,82265.0,82264.0,0.14356]
[1743405265501,0.31917971,82265.0,82264.0,0.14356]
[1743405266217,0.56229571,82265.0,82264.0,0.14356]
[1743405266413,0.57445071,82265.0,82264.0,0.001]
[1743405266829,0.55541166,82265.0,82264.0,0.001]
[1743405267938,0.555293,82258.0,82257.0,0.63148]
[1743405268690,0.555293,82258.0,82243.0,0.012159]
[1743405268691,0.555293,82258.0,82251.0,0.14284]
[1743405268894,0.012158,82248.0,82247.0,0.14296]
[1743405269104,0.012158,82246.0,82241.0,0.243187]
[1743405269383,0.012158,82246.0,82242.0,0.143]
[1743405269585,0.24318,82244.0,82242.0,0.143]
[1743405269793,0.243178,82245.0,82242.0,0.143]
[1743405270526,0.2622159,82246.0,82243.0,0.243178]
[1743405270879,0.2622159,82246.0,82242.0,0.389184]
[1743405271286,0.0190429,82246.0,82245.0,0.243175]
[1743405271512,0.0190429,82246.0,82245.0,0.255333]
[1743405271712,0.0190429,82246.0,82245.0,0.335433]
[1743405272471,0.0190429,82246.0,82245.0,0.338433]
[1743405272675,0.0190429,82246.0,82245.0,0.326275]
[1743405272914,0.0190429,82246.0,82245.0,0.338433]
[1743405273130,0.0190429,82246.0,82245.0,0.326275]
[1743405273499,0.2743729,82246.0,82245.0,0.003]
[1743405273827,0.2743729,82246.0,82245.0,0.14992]
[1743405276793,0.2743729,82246.0,82245.0,0.007]
[1743405277001,0.2743729,82246.0,82245.0,0.15004]
[1743405277244,0.65244835,82246.0,82245.0,0.007]
[1743405277443,0.63340545,82246.0,82245.0,0.007]
[1743405278088,0.55533,82246.0,82245.0,0.007]
[1743405278833,0.55533,82246.0,82245.0,0.004]
[1743405279064,0.555333,82245.0,82244.0,0.14296]
[1743405280364,0.57437651,82245.0,82244.0,0.14296]
[1743405280774,0.57537651,82245.0,82244.0,0.14296]
[1743405281184,0.243192,82240.0,82237.0,0.243198]
[1743405281359,0.243192,82240.0,82238.0,0.14268]
[1743405281801,0.25525131,82240.0,82238.0,0.14268]
[1743405282362,0.243194,82239.0,82238.0,0.14268]
[1743405283796,0.243194,82239.0,82238.0,0.14368]
[1743405285288,0.243194,82239.0,82238.0,0.14344]
[1743405285503,0.255353,82239.0,82238.0,0.14344]
[1743405285952,0.255353,82239.0,82238.0,0.14356]
[1743405286534,0.555353,82239.0,82238.0,0.001]
[1743405286735,0.555353,82239.0,82238.0,0.14348]
[1743405287974,0.556353,82239.0,82238.0,0.14348]
[1743405288175,0.556353,82239.0,82238.0,0.14248]
[1743405288542,0.557353,82239.0,82238.0,0.14248]
[1743405290538,0.5763975,82239.0,82238.0,0.14248]
[1743405291202,0.255368,82234.0,82233.0,0.63144]
[1743405291429,0.255368,82234.0,82233.0,0.77356]
[1743405291907,0.255368,82234.0,82233.0,0.77352]
[1743405292134,0.555368,82234.0,82233.0,0.63144]
[1743405292331,0.555368,82234.0,82233.0,0.14212]
[1743405292576,0.555368,82234.0,82233.0,0.14312]
[1743405292786,0.555368,82234.0,82233.0,0.001]
[1743405293163,0.555384,82229.0,82228.0,0.14208]
[1743405293316,0.555384,82229.0,82228.0,0.14254906]
[1743405293863,0.57443155,82229.0,82228.0,0.14254906]
[1743405294461,0.57443155,82229.0,82228.0,0.14054906]
[1743405294899,0.57443155,82229.0,82228.0,0.14154906]
[1743405295506,0.57443155,82229.0,82228.0,0.14254906]
[1743405297454,0.555384,82229.0,82228.0,0.14254906]
[1743405299921,0.255346,82242.0,82229.0,0.255384]
[1743405300130,0.048,82251.0,82239.0,0.243193]
[1743405300131,0.012157,82251.0,82239.0,0.243193]
[1743405300335,0.243167,82248.0,82244.0,0.255336]
[1743405300537,0.54317,82247.0,82245.0,0.14192]
[1743405300749,0.312158,82250.0,82245.0,0.14192]
[1743405300901,0.3,82250.0,82249.0,0.243164]
[1743405301246,0.243149,82254.0,82251.0,0.243158]
[1743405301456,0.3,82253.0,82248.0,0.012158]
[1743405301657,0.01904274,82250.0,82249.0,0.008158]
[1743405301897,0.01904274,82250.0,82249.0,0.251322]
[1743405302302,0.02004274,82250.0,82249.0,0.249322]
[1743405303277,0.02104274,82250.0,82249.0,0.249322]
[1743405303475,0.02104274,82250.0,82249.0,0.331422]
[1743405305348,0.02104274,82250.0,82246.0,0.243172]
[1743405305550,0.012158,82248.0,82247.0,0.14176]
[1743405305756,0.26420374,82250.0,82247.0,0.14176]
[1743405305903,0.26420374,82250.0,82249.0,0.255322]
[1743405305904,0.02104274,82250.0,82249.0,0.255322]
[1743405306513,0.02004274,82250.0,82249.0,0.255322]
[1743405306942,0.02104274,82250.0,82249.0,0.255322]
[1743405307470,0.001,82250.0,82249.0,0.255322]
[1743405307912,0.001,82250.0,82249.0,0.243164]
[1743405308344,0.255309,82253.0,82250.0,0.243159]
[1743405308508,0.01191996,82254.0,82251.0,0.255314]
[1743405308728,0.543147,82255.0,82251.0,0.255314]
[1743405309092,0.243152,82253.0,82251.0,0.243157]
[1743405309339,0.243152,82253.0,82250.0,0.255318]
[1743405309569,0.001,82253.0,82250.0,0.012158]
[1743405309821,0.001,82253.0,82249.0,0.255321]
[1743405310095,0.25536252,82254.0,82249.0,0.243163]
[1743405310589,0.243157,82252.0,82249.0,0.243163]
[1743405310849,0.255333,82245.0,82241.0,0.243187]
[1743405311096,0.255333,82245.0,82242.0,0.243183]
[1743405311339,0.255333,82245.0,82244.0,0.77344]
[1743405311565,0.255333,82245.0,82244.0,0.77356]
[1743405311959,0.255333,82245.0,82244.0,0.63168]
[1743405312166,0.331932,82245.0,82244.0,0.63168]
[1743405312367,0.555333,82245.0,82244.0,0.77452]
[1743405313156,0.543175,82245.0,82244.0,0.77552]
[1743405313355,0.3,82245.0,82244.0,0.399176]
[1743405313761,0.3,82251.0,82247.0,0.012158]
[1743405313958,0.01904128,82253.0,82252.0,0.243155]
[1743405314115,0.01904128,82253.0,82252.0,0.255312]
[1743405314330,0.01904128,82253.0,82252.0,0.243155]
[1743405315204,0.26219328,82253.0,82249.0,0.288858]
[1743405315402,0.3,82251.0,82249.0,0.288858]
[1743405315613,0.002,82251.0,82250.0,0.243161]
[1743405315821,0.002,82251.0,82250.0,0.255319]
[1743405315822,0.001,82251.0,82250.0,0.255319]
[1743405316030,0.26219328,82253.0,82250.0,0.243161]
[1743405316240,0.02004128,82253.0,82251.0,0.243157]
[1743405316457,0.02004128,82253.0,82241.0,0.0478]
[1743405316458,0.012158,82247.0,82241.0,0.0478]
[1743405316671,0.012159,82239.0,82234.0,0.01216]
[1743405316879,0.012159,82242.0,82232.0,0.0765]
[1743405317093,0.012159,82239.0,82235.0,0.14252]
[1743405317303,0.012159,82242.0,82237.0,0.012159]
[1743405317515,0.243178,82244.0,82241.0,0.243187]
[1743405317731,0.243181,82243.0,82239.0,0.243193]
[1743405317941,0.243184,82242.0,82239.0,0.243193]
[1743405318153,0.243184,82242.0,82240.0,0.14268]
[1743405318710,0.012159,82243.0,82240.0,0.38587]
[1743405318711,0.312159,82243.0,82240.0,0.38587]
[1743405318967,0.312159,82243.0,82240.0,0.14268]
[1743405319177,0.3,82243.0,82240.0,0.14268]
[1743405319388,0.3,82243.0,82242.0,0.243184]
[1743405319598,0.3,82243.0,82240.0,0.154839]
[1743405319599,0.243184,82242.0,82240.0,0.14368]
[1743405319811,0.243184,82242.0,82240.0,0.14568]
[1743405319981,0.243184,82242.0,82240.0,0.14468]
[1743405320193,0.243184,82242.0,82240.0,0.14368]
[1743405320395,0.3,82243.0,82240.0,0.14368]
[1743405320396,0.3,82243.0,82241.0,0.243187]
[1743405320555,0.3,82243.0,82242.0,0.332843]
[1743405320805,0.3,82243.0,82242.0,0.0775]
[1743405321314,0.57438257,82243.0,82242.0,0.001]
[1743405321875,0.255346,82241.0,82240.0,0.001]
[1743405322067,0.255346,82241.0,82240.0,0.1446]
[1743405322678,0.255346,82241.0,82240.0,0.1426]
[1743405323133,0.255346,82241.0,82240.0,0.1446]
[1743405323765,0.255346,82241.0,82240.0,0.1466]
[1743405323967,0.255346,82241.0,82240.0,0.14648]
[1743405323968,0.37563083,82241.0,82240.0,0.14648]
[1743405324173,0.36347183,82241.0,82240.0,0.14648]
[1743405324374,0.243187,82241.0,82240.0,0.14648]
[1743405324940,0.56222357,82243.0,82240.0,0.38967]
[1743405325126,0.243184,82242.0,82240.0,0.14648]
[1743405325322,0.243187,82241.0,82240.0,0.14648]
[1743405325745,0.243187,82241.0,82240.0,0.14448]
[1743405325945,0.33120157,82243.0,82240.0,0.14448]
[1743405326145,0.33120157,82243.0,82240.0,0.14548]
[1743405326376,0.33120157,82243.0,82240.0,0.14448]
[1743405326583,0.243185,82242.0,82240.0,0.14248]
[1743405326784,0.25924454,82242.0,82240.0,0.14348]
[1743405327025,0.012159,82241.0,82240.0,0.14548]
[1743405327256,0.255346,82241.0,82240.0,0.14548]
[1743405327764,0.243187,82241.0,82240.0,0.14548]
[1743405327954,0.3,82243.0,82240.0,0.157639]
[1743405328159,0.3,82243.0,82240.0,0.155639]
[1743405328373,0.543184,82243.0,82240.0,0.38667]
[1743405328707,0.543184,82243.0,82240.0,0.38767]
[1743405328923,0.543184,82243.0,82240.0,0.38967]
[1743405329144,0.543184,82243.0,82241.0,0.243187]
[1743405329406,0.543182,82243.0,82241.0,0.243186]
[1743405329634,0.543182,82243.0,82240.0,0.38567]
[1743405329635,0.543182,82243.0,82240.0,0.38767]
[1743405329815,0.243185,82242.0,82240.0,0.38767]
[1743405330044,0.243185,82242.0,82240.0,0.38667]
[1743405330217,0.543182,82243.0,82241.0,0.001]
[1743405330427,0.01904321,82242.0,82241.0,0.001]
[1743405330802,0.26222821,82242.0,82241.0,0.001]
[1743405331209,0.27438721,82242.0,82241.0,0.001]
[1743405331598,0.38532493,82242.0,82241.0,0.002]
[1743405331806,0.38532493,82242.0,82210.0,0.49570069]
[1743405331807,0.243214,82232.0,82227.0,0.088661]
[1743405332030,0.255374,82232.0,82231.0,0.77376]
[1743405332250,0.255374,82232.0,82231.0,0.63156]
[1743405332460,0.555384,82229.0,82216.0,0.6316]
[1743405333109,0.555384,82229.0,82228.0,0.14270906]
[1743405333771,0.555384,82229.0,82228.0,0.14470906]
[1743405334500,0.555384,82229.0,82228.0,0.00246906]
[1743405334696,0.67566883,82229.0,82228.0,0.00146906]
[1743405334926,0.84370789,82229.0,82228.0,0.00046906]
[1743405335097,0.80036883,82229.0,82228.0,0.00046906]
[1743405335724,0.555405,82222.0,82212.0,0.1424]
[1743405335949,0.555405,82222.0,82221.0,0.00404707]
[1743405336549,0.57445562,82222.0,82221.0,0.00404707]
[1743405337383,0.56679269,82222.0,82221.0,0.00404707]
[1743405337985,0.56679269,82222.0,82221.0,0.00504707]
[1743405338184,0.31138769,82222.0,82221.0,0.24829307]
[1743405338458,0.31138769,82222.0,82221.0,0.00504707]
[1743405338662,0.31138769,82222.0,82221.0,0.00404707]
[1743405338862,0.32354969,82222.0,82221.0,0.00404707]
[1743405339621,0.312162,82222.0,82221.0,0.00404707]
[1743405340019,0.3,82222.0,82221.0,0.00404707]
[1743405340392,0.3,82222.0,82221.0,0.01620907]
[1743405340615,0.3,82222.0,82221.0,0.00404707]
[1743405341374,0.3,82222.0,82221.0,0.01620907]
[1743405341891,0.3190483,82222.0,82221.0,0.01620907]
[1743405342121,0.3190483,82222.0,82221.0,0.00404707]
[1743405342325,0.0190483,82222.0,82221.0,0.00404707]
[1743405342549,0.0190483,82222.0,82221.0,0.01620907]
[1743405342744,0.0190483,82222.0,82221.0,0.25945507]
[1743405344467,0.0190483,82222.0,82221.0,0.33665507]
[1743405344683,0.0190483,82222.0,82221.0,0.4569399]
[1743405346532,0.0190483,82222.0,82221.0,0.4579399]
[1743405346939,0.3,82234.0,82233.0,0.255371]
[1743405347154,0.3,82234.0,82233.0,0.14256]
[1743405348207,0.004,82234.0,82233.0,0.14256]
[1743405348628,0.247208,82234.0,82233.0,0.14256]
[1743405348835,0.004,82234.0,82233.0,0.397931]
[1743405350082,0.02104554,82234.0,82233.0,0.397931]
[1743405350409,0.02104554,82234.0,82233.0,0.385771]
[1743405350754,0.01904554,82234.0,82233.0,0.397931]
[1743405350973,0.01904554,82234.0,82233.0,0.14256]
[1743405351182,0.56225354,82234.0,82233.0,0.14256]
[1743405351772,0.57441354,82234.0,82233.0,0.14256]
[1743405352642,0.57441354,82234.0,82228.0,0.012161]
[1743405352643,0.012161,82227.0,82221.0,0.00404707]
[1743405352814,0.243243,82223.0,82222.0,0.14248]
[1743405353016,0.255405,82223.0,82221.0,0.00404707]
[1743405353243,0.555405,82222.0,82221.0,0.00404707]
[1743405353641,0.555405,82222.0,82221.0,0.14664707]
[1743405353853,0.3,82222.0,82221.0,0.14664707]
[1743405354025,0.3,82222.0,82221.0,0.40205507]
[1743405354224,0.3,82222.0,82221.0,0.40305507]
[1743405354430,0.01904801,82223.0,82222.0,0.255405]